[Event "GrandPrix_29.05"]
[Site "Chess.com"]
[Date "2020.05.29"]
[Round "7"]
[White "BogdanBelyakov89"]
[Black "Vazgen352"]
[Result "1/2-1/2"]
[WhiteElo "2265"]
[BlackElo "2368"]
[TimeControl "600+2"]
[EndTime "12:32:36 PDT"]
[Termination "Game drawn by agreement"]

1. e4 {[%clk 0:10:01.9]} 1... e6 {[%clk 0:09:58.2]} 2. d4 {[%clk 0:10:00.9]}
2... d5 {[%clk 0:09:59.7]} 3. Nc3 {[%clk 0:09:54.6]} 3... dxe4 {[%clk
0:10:00.1]} 4. Nxe4 {[%clk 0:09:56.5]} 4... Nd7 {[%clk 0:10:01.6]} 5. Bd3 {[%clk
0:09:55.8]} 5... Ngf6 {[%clk 0:10:02.3]} 6. Qe2 {[%clk 0:09:56.8]} 6... Be7
{[%clk 0:10:03.3]} 7. Nf3 {[%clk 0:09:55.9]} 7... O-O {[%clk 0:10:04.1]} 8. Bg5
{[%clk 0:08:52.1]} 8... Nd5 {[%clk 0:09:45.4]} 9. Bd2 {[%clk 0:08:44.3]} 9...
Nb4 {[%clk 0:09:39.7]} 10. Bxb4 {[%clk 0:08:44]} 10... Bxb4+ {[%clk 0:09:41.6]}
11. c3 {[%clk 0:08:45.5]} 11... Be7 {[%clk 0:09:42.6]} 12. h4 {[%clk 0:08:44.4]}
12... c5 {[%clk 0:09:13.9]} 13. dxc5 {[%clk 0:08:39.4]} 13... Qc7 {[%clk
0:09:07.1]} 14. Bc2 {[%clk 0:07:25.5]} 14... Nxc5 {[%clk 0:09:00.9]} 15. Nfg5
{[%clk 0:06:15.1]} 15... Nxe4 {[%clk 0:08:51.3]} 16. Bxe4 {[%clk 0:05:08.9]}
16... h6 {[%clk 0:08:29.4]} 17. Bh7+ {[%clk 0:04:44.4]} 17... Kh8 {[%clk
0:08:29.1]} 18. Bc2 {[%clk 0:04:43.9]} 18... e5 {[%clk 0:06:36.6]} 19. Qh5
{[%clk 0:03:29.7]} 19... Ba3 {[%clk 0:05:18.3]} 20. O-O-O {[%clk 0:02:48.6]}
20... Bg4 {[%clk 0:04:23.4]} 21. Qxg4 {[%clk 0:02:33.3]} 21... Qxc3 {[%clk
0:04:23.2]} 22. bxa3 {[%clk 0:02:23.3]} 22... Rac8 {[%clk 0:04:08.5]} 23. Qf5
{[%clk 0:01:50.3]} 23... Qa1+ {[%clk 0:04:08]} 24. Kd2 {[%clk 0:01:50]} 24...
Qc3+ {[%clk 0:04:09.2]} 25. Ke2 {[%clk 0:01:16.9]} 25... Qxc2+ {[%clk
0:04:03.2]} 26. Qxc2 {[%clk 0:01:18.8]} 26... Rxc2+ {[%clk 0:04:04.8]} 27. Kd3
{[%clk 0:01:17.6]} 27... Rxf2 {[%clk 0:04:00.5]} 28. Ke3 {[%clk 0:01:09.7]}
28... Rxg2 {[%clk 0:03:55.2]} 29. Nf3 {[%clk 0:00:55.8]} 29... Rxa2 {[%clk
0:03:55.6]} 30. Nxe5 {[%clk 0:00:52]} 30... Rxa3+ {[%clk 0:03:34.7]} 31. Rd3
{[%clk 0:00:45.3]} 31... Ra5 {[%clk 0:03:32.7]} 32. Nf3 {[%clk 0:00:45.2]} 32...
Re8+ {[%clk 0:03:32.3]} 33. Kf4 {[%clk 0:00:45.3]} 33... Re7 {[%clk 0:03:31.9]}
34. Rd6 {[%clk 0:00:27.8]} 34... g6 {[%clk 0:03:26.5]} 35. h5 {[%clk 0:00:23.8]}
35... Kg7 {[%clk 0:03:20.3]} 36. hxg6 {[%clk 0:00:24.2]} 36... fxg6 {[%clk
0:03:22.2]} 37. Rg1 {[%clk 0:00:24.7]} 37... g5+ {[%clk 0:03:21]} 38. Kg3 {[%clk
0:00:21.4]} 38... Ra3 {[%clk 0:03:22.2]} 39. Rf1 {[%clk 0:00:19.7]} 39... Rf7
{[%clk 0:03:20.8]} 40. Kg2 {[%clk 0:00:18.3]} 40... Ra2+ {[%clk 0:03:18.7]} 41.
Kg3 {[%clk 0:00:10.2]} 41... b5 {[%clk 0:03:07.2]} 42. Rfd1 {[%clk 0:00:09.7]}
42... Ra3 {[%clk 0:03:08.1]} 43. R1d3 {[%clk 0:00:10.6]} 43... Rxd3 {[%clk
0:03:09]} 44. Rxd3 {[%clk 0:00:12.5]} 44... b4 {[%clk 0:03:05.5]} 45. Ne5 {[%clk
0:00:12.4]} 45... Rb7 {[%clk 0:03:05.8]} 46. Rb3 {[%clk 0:00:10.2]} 46... a5
{[%clk 0:03:04.5]} 47. Nc6 {[%clk 0:00:10.7]} 47... Rb5 {[%clk 0:03:05.8]} 48.
Kf3 {[%clk 0:00:09.4]} 48... Kf6 {[%clk 0:03:05.6]} 49. Ke4 {[%clk 0:00:10.2]}
49... g4 {[%clk 0:03:04.4]} 50. Nd4 {[%clk 0:00:10.2]} 50... Re5+ {[%clk
0:03:03.6]} 51. Kf4 {[%clk 0:00:10.9]} 51... h5 {[%clk 0:03:05.2]} 52. Rb1
{[%clk 0:00:09.8]} 52... Rd5 {[%clk 0:03:05.4]} 53. Ke4 {[%clk 0:00:10.6]} 53...
Rd8 {[%clk 0:03:06.3]} 54. Rf1+ {[%clk 0:00:10.2]} 54... Kg6 {[%clk 0:03:03.1]}
55. Rc1 {[%clk 0:00:10.5]} 55... Re8+ {[%clk 0:02:45.8]} 56. Kf4 {[%clk
0:00:11.3]} 56... Rf8+ {[%clk 0:02:47.2]} 57. Ke4 {[%clk 0:00:12.3]} 57... g3
{[%clk 0:02:47.4]} 58. Nf3 {[%clk 0:00:09.8]} 58... b3 {[%clk 0:02:33.4]} 59.
Rg1 {[%clk 0:00:08.9]} 59... h4 {[%clk 0:02:18.1]} 60. Nxh4+ {[%clk 0:00:09.5]}
60... Kg5 {[%clk 0:02:19.3]} 61. Rxg3+ {[%clk 0:00:09.2]} 61... Kxh4 {[%clk
0:02:20.6]} 62. Rxb3 {[%clk 0:00:10.8]} 62... Kg4 {[%clk 0:02:19.7]} 63. Ra3
{[%clk 0:00:11.1]} 63... Rf5 {[%clk 0:02:17.7]} 64. Kd4 {[%clk 0:00:11.6]} 64...
Kf4 {[%clk 0:02:18.2]} 65. Kc4 {[%clk 0:00:12.6]} 65... Ke4 {[%clk 0:02:19.3]}
66. Ra1 {[%clk 0:00:13.1]} 66... Ke3 {[%clk 0:02:18.4]} 67. Kb3 {[%clk
0:00:13.2]} 67... Kd2 {[%clk 0:02:17.3]} 68. Ka4 {[%clk 0:00:13.9]} 68... Kc3
{[%clk 0:02:14.1]} 69. Rc1+ {[%clk 0:00:14.1]} 69... Kd4 {[%clk 0:02:15.6]} 70.
Rc8 {[%clk 0:00:14.6]} 70... Rc5 {[%clk 0:02:15.1]} 1/2-1/2

[Event "GrandPrix_29.05"]
[Site "Chess.com"]
[Date "2020.05.29"]
[Round "7"]
[White "aleksandrovaleksei"]
[Black "elohunter1999"]
[Result "1-0"]
[WhiteElo "2406"]
[BlackElo "2195"]
[TimeControl "600+2"]
[EndTime "12:32:42 PDT"]
[Termination "aleksandrovaleksei won by resignation"]

1. d4 {[%clk 0:10:01.9]} 1... Nf6 {[%clk 0:09:38.1]} 2. c4 {[%clk 0:10:01.9]}
2... e6 {[%clk 0:09:23.4]} 3. Nc3 {[%clk 0:10:02.8]} 3... Bb4 {[%clk 0:09:24]}
4. e3 {[%clk 0:10:03.7]} 4... c5 {[%clk 0:09:11.9]} 5. Ne2 {[%clk 0:09:48.9]}
5... cxd4 {[%clk 0:09:07.8]} 6. exd4 {[%clk 0:09:49.7]} 6... d5 {[%clk
0:09:08.2]} 7. a3 {[%clk 0:09:49.3]} 7... Be7 {[%clk 0:08:57.6]} 8. c5 {[%clk
0:09:49.1]} 8... b6 {[%clk 0:08:37.1]} 9. b4 {[%clk 0:09:47.2]} 9... O-O {[%clk
0:08:12.9]} 10. Bg5 {[%clk 0:09:18.9]} 10... a5 {[%clk 0:08:07.6]} 11. Rb1
{[%clk 0:08:19]} 11... axb4 {[%clk 0:07:53.9]} 12. axb4 {[%clk 0:08:19.3]} 12...
bxc5 {[%clk 0:07:52.9]} 13. dxc5 {[%clk 0:08:20.2]} 13... Ba6 {[%clk 0:07:25.4]}
14. Nd4 {[%clk 0:07:31.2]} 14... Bxf1 {[%clk 0:07:18.8]} 15. Kxf1 {[%clk
0:07:31.8]} 15... e5 {[%clk 0:07:16.6]} 16. Nf5 {[%clk 0:07:31.9]} 16... d4
{[%clk 0:07:17.1]} 17. Ne4 {[%clk 0:06:32.2]} 17... Ra2 {[%clk 0:04:41.9]} 18.
Nxe7+ {[%clk 0:02:07.5]} 18... Qxe7 {[%clk 0:04:40.7]} 19. Nxf6+ {[%clk
0:02:08.3]} 19... gxf6 {[%clk 0:04:40]} 20. Bh6 {[%clk 0:02:09.4]} 20... Qe6
{[%clk 0:04:09.8]} 21. Qd3 {[%clk 0:01:54]} 21... Qg4 {[%clk 0:03:18.5]} 22. Qg3
{[%clk 0:00:18.4]} 22... Qxg3 {[%clk 0:03:16.1]} 23. hxg3 {[%clk 0:00:20.3]}
23... Rc8 {[%clk 0:02:33.3]} 24. Rh4 {[%clk 0:00:19.7]} 24... f5 {[%clk
0:02:33.8]} 25. Rh5 {[%clk 0:00:17.2]} 25... f6 {[%clk 0:02:25.7]} 26. Rxf5
{[%clk 0:00:17.6]} 26... Kf7 {[%clk 0:02:25.9]} 27. g4 {[%clk 0:00:08.3]} 27...
Kg6 {[%clk 0:02:08.7]} 28. Rh5 {[%clk 0:00:09]} 28... Na6 {[%clk 0:02:00.6]} 29.
f4 {[%clk 0:00:09.4]} 29... e4 {[%clk 0:01:45.4]} 30. f5+ {[%clk 0:00:09.8]}
30... Kf7 {[%clk 0:01:45.9]} 31. Bf4 {[%clk 0:00:11.7]} 31... Kg7 {[%clk
0:01:16.7]} 32. Bh6+ {[%clk 0:00:05.4]} 32... Kg8 {[%clk 0:01:10.2]} 33. g5
{[%clk 0:00:06.3]} 33... Rb8 {[%clk 0:00:37.2]} 34. c6 {[%clk 0:00:06.9]} 34...
Rb6 {[%clk 0:00:31.8]} 35. gxf6 {[%clk 0:00:06.4]} 35... Rxc6 {[%clk 0:00:31.4]}
36. b5 {[%clk 0:00:07.1]} 36... Rb6 {[%clk 0:00:24.4]} 37. Bf4 {[%clk
0:00:07.7]} 37... Nc5 {[%clk 0:00:19.9]} 38. Be5 {[%clk 0:00:06.4]} 38... d3
{[%clk 0:00:18.3]} 39. Rg5+ {[%clk 0:00:07]} 39... Kf8 {[%clk 0:00:17.9]} 40.
Bd4 {[%clk 0:00:07.8]} 40... d2 {[%clk 0:00:13.7]} 41. Bxc5+ {[%clk 0:00:08.3]}
41... Kf7 {[%clk 0:00:14.7]} 42. Bxb6 {[%clk 0:00:09.4]} 42... Kxf6 {[%clk
0:00:13.3]} 43. Bd8+ {[%clk 0:00:09.4]} 43... Kf7 {[%clk 0:00:13.9]} 44. Rd1
{[%clk 0:00:11]} 44... e3 {[%clk 0:00:14.9]} 45. Ke2 {[%clk 0:00:12.1]} 45...
Ra3 {[%clk 0:00:15.6]} 46. Rg3 {[%clk 0:00:13]} 1-0

[Event "GrandPrix_29.05"]
[Site "Chess.com"]
[Date "2020.05.29"]
[Round "7"]
[White "Grebnev_A"]
[Black "Kostya_Nikologorskiy"]
[Result "1-0"]
[WhiteElo "2189"]
[BlackElo "2220"]
[TimeControl "600+2"]
[EndTime "12:32:45 PDT"]
[Termination "Grebnev_A won by resignation"]

1. c4 {[%clk 0:10:01.9]} 1... e5 {[%clk 0:09:59.9]} 2. Nc3 {[%clk 0:10:02.4]}
2... Nf6 {[%clk 0:09:58.2]} 3. g3 {[%clk 0:10:03]} 3... Bb4 {[%clk 0:09:59.4]}
4. Bg2 {[%clk 0:10:02.5]} 4... Bxc3 {[%clk 0:09:56.8]} 5. dxc3 {[%clk
0:10:04.4]} 5... O-O {[%clk 0:09:57.9]} 6. e4 {[%clk 0:10:04.3]} 6... Na6 {[%clk
0:09:48.7]} 7. Ne2 {[%clk 0:09:56.6]} 7... c6 {[%clk 0:09:37.3]} 8. O-O {[%clk
0:09:56.8]} 8... Qe7 {[%clk 0:09:22.5]} 9. Qc2 {[%clk 0:09:48.1]} 9... Nc7
{[%clk 0:09:15]} 10. h3 {[%clk 0:09:38.5]} 10... Rd8 {[%clk 0:09:09.6]} 11. Rd1
{[%clk 0:09:33.6]} 11... d5 {[%clk 0:08:51.2]} 12. cxd5 {[%clk 0:09:30.3]} 12...
cxd5 {[%clk 0:08:53.1]} 13. exd5 {[%clk 0:09:31.6]} 13... Ncxd5 {[%clk
0:08:52.1]} 14. c4 {[%clk 0:09:20.8]} 14... Nb4 {[%clk 0:08:37.7]} 15. Rxd8+
{[%clk 0:09:19.8]} 15... Qxd8 {[%clk 0:08:39.6]} 16. Qb3 {[%clk 0:09:21.6]}
16... a5 {[%clk 0:08:05.4]} 17. Be3 {[%clk 0:09:17.6]} 17... Bf5 {[%clk
0:07:31.4]} 18. Qc3 {[%clk 0:08:37.6]} 18... Nc2 {[%clk 0:06:40.8]} 19. Rc1
{[%clk 0:08:35.8]} 19... Nxe3 {[%clk 0:06:35.8]} 20. Qxe3 {[%clk 0:08:37.7]}
20... Qd3 {[%clk 0:06:11.4]} 21. Rc3 {[%clk 0:08:34.7]} 21... Qd1+ {[%clk
0:06:05.1]} 22. Kh2 {[%clk 0:08:31.6]} 22... Bg4 {[%clk 0:05:32.4]} 23. Nc1
{[%clk 0:08:30.2]} 23... Re8 {[%clk 0:04:56.5]} 24. Nd3 {[%clk 0:08:00.5]} 24...
e4 {[%clk 0:03:54.7]} 25. Nc5 {[%clk 0:06:44.3]} 25... Qb1 {[%clk 0:02:38.6]}
26. Nxb7 {[%clk 0:05:18.2]} 26... Qxb2 {[%clk 0:01:50.1]} 27. Nd6 {[%clk
0:05:15.9]} 27... Rd8 {[%clk 0:01:48]} 28. Nxe4 {[%clk 0:03:27.7]} 28... Nxe4
{[%clk 0:01:47.3]} 29. Bxe4 {[%clk 0:03:29.5]} 29... Be6 {[%clk 0:01:48.4]} 30.
Rc2 {[%clk 0:03:30]} 30... Qd4 {[%clk 0:01:01.4]} 31. c5 {[%clk 0:03:11.4]}
31... Kf8 {[%clk 0:00:27.3]} 32. Qf3 {[%clk 0:02:39.9]} 32... Ke7 {[%clk
0:00:21.4]} 33. c6 {[%clk 0:02:38.2]} 33... Qd6 {[%clk 0:00:22.4]} 34. Qe3
{[%clk 0:02:29.6]} 34... Rc8 {[%clk 0:00:22.4]} 35. Qg5+ {[%clk 0:02:25.8]}
35... Kf8 {[%clk 0:00:22.7]} 36. Qxa5 {[%clk 0:02:27.1]} 36... Qd4 {[%clk
0:00:18.2]} 37. Bg2 {[%clk 0:02:06.6]} 37... g6 {[%clk 0:00:16.4]} 38. Rd2
{[%clk 0:01:55.4]} 38... Qc4 {[%clk 0:00:11.7]} 39. Rd8+ {[%clk 0:01:53.4]}
39... Rxd8 {[%clk 0:00:10.3]} 40. Qxd8+ {[%clk 0:01:55.3]} 40... Kg7 {[%clk
0:00:12.2]} 41. c7 {[%clk 0:01:42.8]} 41... h5 {[%clk 0:00:11.1]} 42. h4 {[%clk
0:01:31.2]} 42... Qc5 {[%clk 0:00:06.1]} 43. a4 {[%clk 0:01:27.4]} 43... Bf5
{[%clk 0:00:04.4]} 44. Qb8 {[%clk 0:01:05.8]} 44... Be6 {[%clk 0:00:03.1]} 45.
a5 {[%clk 0:01:04.7]} 45... Qc4 {[%clk 0:00:02.5]} 46. Qb6 {[%clk 0:00:55.9]}
46... Qc3 {[%clk 0:00:03.3]} 47. a6 {[%clk 0:00:55.3]} 47... g5 {[%clk
0:00:02.1]} 48. a7 {[%clk 0:00:51.7]} 48... gxh4 {[%clk 0:00:03.2]} 49. a8=Q
{[%clk 0:00:52.7]} 49... hxg3+ {[%clk 0:00:04.5]} 50. fxg3 {[%clk 0:00:54.6]}
50... h4 {[%clk 0:00:05.2]} 51. Qf3 {[%clk 0:00:55.8]} 51... Qe5 {[%clk
0:00:04.8]} 52. Qbe3 {[%clk 0:00:51.1]} 1-0

[Event "GrandPrix_29.05"]
[Site "Chess.com"]
[Date "2020.05.29"]
[Round "7"]
[White "Salnaa"]
[Black "madamDD"]
[Result "0-1"]
[WhiteElo "2180"]
[BlackElo "2393"]
[TimeControl "600+2"]
[EndTime "12:32:48 PDT"]
[Termination "madamDD won by resignation"]

1. d4 {[%clk 0:10:01.9]} 1... Nf6 {[%clk 0:09:51.2]} 2. c4 {[%clk 0:10:01.4]}
2... b6 {[%clk 0:09:50.4]} 3. Nc3 {[%clk 0:10:01.7]} 3... Bb7 {[%clk 0:09:50.7]}
4. Nf3 {[%clk 0:09:49.2]} 4... e6 {[%clk 0:09:23.9]} 5. Qc2 {[%clk 0:09:42.5]}
5... d5 {[%clk 0:09:21]} 6. cxd5 {[%clk 0:09:35.4]} 6... Nxd5 {[%clk 0:09:19.3]}
7. e4 {[%clk 0:09:25.9]} 7... Nxc3 {[%clk 0:09:19.2]} 8. bxc3 {[%clk 0:09:27.8]}
8... Be7 {[%clk 0:09:15.3]} 9. Be3 {[%clk 0:09:02.8]} 9... O-O {[%clk
0:09:07.6]} 10. h4 {[%clk 0:08:47.4]} 10... c5 {[%clk 0:08:58.1]} 11. e5 {[%clk
0:08:27]} 11... cxd4 {[%clk 0:08:29.5]} 12. Ng5 {[%clk 0:07:42.7]} 12... g6
{[%clk 0:07:58.1]} 13. Bxd4 {[%clk 0:06:58.5]} 13... Bxg5 {[%clk 0:07:21]} 14.
hxg5 {[%clk 0:06:57.4]} 14... Qxg5 {[%clk 0:07:19.3]} 15. Qd2 {[%clk 0:04:08.9]}
15... Qxd2+ {[%clk 0:07:10.5]} 16. Kxd2 {[%clk 0:04:10.8]} 16... Nc6 {[%clk
0:07:07.3]} 17. f3 {[%clk 0:04:05.2]} 17... Rfd8 {[%clk 0:06:24.5]} 18. Ke3
{[%clk 0:04:05.4]} 18... Rac8 {[%clk 0:05:18.6]} 19. Bd3 {[%clk 0:04:03.7]}
19... f6 {[%clk 0:04:18.7]} 20. f4 {[%clk 0:03:04.3]} 20... fxe5 {[%clk
0:04:12.6]} 21. fxe5 {[%clk 0:03:05.1]} 21... Nxd4 {[%clk 0:04:10]} 22. cxd4
{[%clk 0:03:07]} 22... Bxg2 {[%clk 0:04:06.3]} 23. Rhc1 {[%clk 0:03:04.8]} 23...
Bd5 {[%clk 0:03:51.8]} 24. Ba6 {[%clk 0:02:38.8]} 24... Rxc1 {[%clk 0:03:45.5]}
25. Rxc1 {[%clk 0:02:40.7]} 25... Rd7 {[%clk 0:03:37.8]} 26. a3 {[%clk
0:02:23.1]} 26... Rf7 {[%clk 0:03:33.9]} 27. Be2 {[%clk 0:02:18.2]} 27... Kg7
{[%clk 0:03:33]} 28. Rg1 {[%clk 0:01:44.2]} 28... Rc7 {[%clk 0:03:25.7]} 29. Kd2
{[%clk 0:01:45.3]} 29... Be4 {[%clk 0:03:00.2]} 30. Rg3 {[%clk 0:01:15.2]} 30...
Rc2+ {[%clk 0:02:52.3]} 31. Kd1 {[%clk 0:01:11.5]} 31... Rc7 {[%clk 0:02:21]}
32. Kd2 {[%clk 0:01:11.3]} 32... h6 {[%clk 0:02:18.4]} 33. Bg4 {[%clk
0:01:06.2]} 33... Kf7 {[%clk 0:01:51.9]} 34. a4 {[%clk 0:00:57.8]} 34... Rc4
{[%clk 0:01:42]} 35. Ra3 {[%clk 0:00:45.3]} 35... Rxd4+ {[%clk 0:01:36.6]} 36.
Ke3 {[%clk 0:00:45.9]} 36... Rb4 {[%clk 0:01:14.6]} 37. a5 {[%clk 0:00:44.9]}
37... Bf5 {[%clk 0:01:01.7]} 38. axb6 {[%clk 0:00:44.3]} 38... axb6 {[%clk
0:01:02.4]} 39. Ra7+ {[%clk 0:00:43]} 39... Kf8 {[%clk 0:01:03]} 40. Ra8+ {[%clk
0:00:43]} 40... Ke7 {[%clk 0:01:03.9]} 41. Ra7+ {[%clk 0:00:44.3]} 41... Kd8
{[%clk 0:01:02.6]} 42. Ra8+ {[%clk 0:00:36.4]} 42... Kc7 {[%clk 0:01:00.5]} 43.
Bf3 {[%clk 0:00:32]} 43... b5 {[%clk 0:00:46.3]} 44. Ra7+ {[%clk 0:00:28.1]}
44... Kb6 {[%clk 0:00:47.3]} 45. Rb7+ {[%clk 0:00:29.7]} 45... Ka6 {[%clk
0:00:40.9]} 46. Rb8 {[%clk 0:00:27.9]} 46... Rb3+ {[%clk 0:00:34.4]} 47. Ke2
{[%clk 0:00:20.5]} 47... Ka5 {[%clk 0:00:31.2]} 48. Bc6 {[%clk 0:00:20.8]} 48...
h5 {[%clk 0:00:24.9]} 49. Bd7 {[%clk 0:00:14.4]} 49... h4 {[%clk 0:00:24]} 0-1

[Event "GrandPrix_29.05"]
[Site "Chess.com"]
[Date "2020.05.29"]
[Round "7"]
[White "AmilAbbasov"]
[Black "RogerFederer13"]
[Result "1-0"]
[WhiteElo "2257"]
[BlackElo "2103"]
[TimeControl "600+2"]
[EndTime "12:32:51 PDT"]
[Termination "AmilAbbasov won by checkmate"]

1. e4 {[%clk 0:09:59]} 1... c6 {[%clk 0:10:01.1]} 2. Nf3 {[%clk 0:09:55.4]} 2...
d5 {[%clk 0:10:02.1]} 3. Nc3 {[%clk 0:09:56.6]} 3... Nf6 {[%clk 0:10:03.3]} 4.
e5 {[%clk 0:09:42.3]} 4... Ne4 {[%clk 0:10:04.3]} 5. d4 {[%clk 0:09:36.1]} 5...
Nxc3 {[%clk 0:09:59.5]} 6. bxc3 {[%clk 0:09:38]} 6... c5 {[%clk 0:10:01.1]} 7.
Be3 {[%clk 0:09:30]} 7... e6 {[%clk 0:09:01.5]} 8. Be2 {[%clk 0:09:24.5]} 8...
c4 {[%clk 0:08:21.3]} 9. O-O {[%clk 0:09:22.9]} 9... Ba3 {[%clk 0:08:14.3]} 10.
Bc1 {[%clk 0:09:11.8]} 10... Be7 {[%clk 0:07:50.7]} 11. Ne1 {[%clk 0:08:52]}
11... Qa5 {[%clk 0:07:44.2]} 12. Bd2 {[%clk 0:08:50.3]} 12... Nd7 {[%clk
0:06:49.8]} 13. f4 {[%clk 0:08:44]} 13... Nb6 {[%clk 0:06:49.7]} 14. Nf3 {[%clk
0:08:30.4]} 14... Bd7 {[%clk 0:05:44.6]} 15. Qe1 {[%clk 0:07:10.9]} 15... O-O-O
{[%clk 0:05:19.8]} 16. Qg3 {[%clk 0:07:08.6]} 16... g6 {[%clk 0:05:19.9]} 17.
Ng5 {[%clk 0:06:57.8]} 17... Rdf8 {[%clk 0:05:19.5]} 18. Qe3 {[%clk 0:06:47.6]}
18... Na4 {[%clk 0:05:03.9]} 19. g4 {[%clk 0:05:59.9]} 19... Ba3 {[%clk
0:04:21.8]} 20. Rab1 {[%clk 0:05:32.6]} 20... Bb2 {[%clk 0:04:03.9]} 21. Rf3
{[%clk 0:05:31.5]} 21... h5 {[%clk 0:04:01.2]} 22. gxh5 {[%clk 0:05:06.7]} 22...
Rxh5 {[%clk 0:04:03.1]} 23. Rg3 {[%clk 0:03:25.8]} 23... Rhh8 {[%clk 0:04:03.1]}
24. Bf1 {[%clk 0:03:14.1]} 24... Ba3 {[%clk 0:03:01.2]} 25. Bc1 {[%clk
0:02:49.1]} 25... Be7 {[%clk 0:02:58.5]} 26. Bd2 {[%clk 0:02:39.9]} 26... Rh4
{[%clk 0:02:09.1]} 27. Rh3 {[%clk 0:02:25.1]} 27... Rxh3 {[%clk 0:01:16]} 28.
Qxh3 {[%clk 0:02:27]} 28... Ba3 {[%clk 0:01:01.9]} 29. Qh7 {[%clk 0:02:08.7]}
29... Be8 {[%clk 0:00:59.5]} 30. f5 {[%clk 0:01:39.7]} 30... Nxc3 {[%clk
0:00:15.9]} 31. Re1 {[%clk 0:01:08.1]} 31... Bb2 {[%clk 0:00:11.6]} 32. Qg7
{[%clk 0:00:58.2]} 32... Qb4 {[%clk 0:00:12.8]} 33. fxe6 {[%clk 0:00:55.5]}
33... fxe6 {[%clk 0:00:12.2]} 34. Nxe6 {[%clk 0:00:55.5]} 34... Rf7 {[%clk
0:00:12.9]} 35. Qg8 {[%clk 0:00:55.1]} 35... Qe7 {[%clk 0:00:14]} 36. Bh3 {[%clk
0:00:50.5]} 36... Kb8 {[%clk 0:00:11.6]} 37. Bg5 {[%clk 0:00:46.8]} 37... Qd7
{[%clk 0:00:11.2]} 38. Nc5 {[%clk 0:00:39.1]} 38... Ne2+ {[%clk 0:00:06.7]} 39.
Kg2 {[%clk 0:00:30.3]} 39... Qc6 {[%clk 0:00:06.5]} 40. Bd7 {[%clk 0:00:23.3]}
40... Rxd7 {[%clk 0:00:03.9]} 41. Qxe8+ {[%clk 0:00:23.7]} 41... Kc7 {[%clk
0:00:05.5]} 42. Nxd7 {[%clk 0:00:17.7]} 42... Nxd4 {[%clk 0:00:05.7]} 43. Qd8#
{[%clk 0:00:18.3]} 1-0

[Event "GrandPrix_29.05"]
[Site "Chess.com"]
[Date "2020.05.29"]
[Round "7"]
[White "tsvet2005"]
[Black "GMMarcinDziuba"]
[Result "0-1"]
[WhiteElo "2293"]
[BlackElo "2500"]
[TimeControl "600+2"]
[EndTime "12:32:52 PDT"]
[Termination "GMMarcinDziuba won by resignation"]

1. d4 {[%clk 0:09:49.3]} 1... Nf6 {[%clk 0:09:53.8]} 2. c4 {[%clk 0:09:50.3]}
2... g6 {[%clk 0:09:53.1]} 3. Nc3 {[%clk 0:09:50.1]} 3... Bg7 {[%clk 0:09:53.9]}
4. e4 {[%clk 0:09:50.4]} 4... d6 {[%clk 0:09:54.6]} 5. Be2 {[%clk 0:09:51.3]}
5... O-O {[%clk 0:09:53.1]} 6. Be3 {[%clk 0:09:52.4]} 6... e5 {[%clk 0:09:45]}
7. d5 {[%clk 0:09:53.2]} 7... c6 {[%clk 0:09:42.4]} 8. Nf3 {[%clk 0:09:32.4]}
8... Ng4 {[%clk 0:09:38.6]} 9. Bg5 {[%clk 0:09:20]} 9... f6 {[%clk 0:09:39.5]}
10. Bh4 {[%clk 0:09:17.5]} 10... c5 {[%clk 0:09:38.7]} 11. Nd2 {[%clk
0:09:08.5]} 11... h5 {[%clk 0:09:39.7]} 12. h3 {[%clk 0:08:43.3]} 12... Nh6
{[%clk 0:09:39.7]} 13. a3 {[%clk 0:08:37.1]} 13... Na6 {[%clk 0:09:11]} 14. g4
{[%clk 0:08:28.6]} 14... hxg4 {[%clk 0:09:09.6]} 15. hxg4 {[%clk 0:08:30.5]}
15... Nf7 {[%clk 0:09:10.4]} 16. Rb1 {[%clk 0:08:24.1]} 16... Bh6 {[%clk
0:09:10.2]} 17. b4 {[%clk 0:08:22.7]} 17... Kg7 {[%clk 0:09:08.1]} 18. Nb3
{[%clk 0:07:44.6]} 18... cxb4 {[%clk 0:08:54.5]} 19. axb4 {[%clk 0:07:45.5]}
19... Nxb4 {[%clk 0:08:55.7]} 20. c5 {[%clk 0:07:43.2]} 20... a5 {[%clk
0:08:56.6]} 21. Na4 {[%clk 0:07:29.7]} 21... Qe7 {[%clk 0:08:31]} 22. Nb6 {[%clk
0:07:21.4]} 22... Rb8 {[%clk 0:07:56.3]} 23. Nxa5 {[%clk 0:04:25]} 23... dxc5
{[%clk 0:07:52.1]} 24. Nac4 {[%clk 0:04:25.6]} 24... Nd6 {[%clk 0:07:42.4]} 25.
Nxd6 {[%clk 0:04:25.8]} 25... Qxd6 {[%clk 0:07:43.3]} 26. Nc4 {[%clk 0:04:27.7]}
26... Qd8 {[%clk 0:07:32.5]} 27. Nxe5 {[%clk 0:03:46.3]} 27... Qe7 {[%clk
0:07:21.8]} 28. g5 {[%clk 0:03:09.4]} 28... Bxg5 {[%clk 0:07:06.5]} 29. Bxg5
{[%clk 0:02:18.3]} 29... fxg5 {[%clk 0:07:08.4]} 30. Nf3 {[%clk 0:02:19.6]}
30... Qxe4 {[%clk 0:05:52.9]} 31. Rb3 {[%clk 0:02:18.6]} 31... Bg4 {[%clk
0:05:24.3]} 32. Kf1 {[%clk 0:01:03.2]} 32... Nxd5 {[%clk 0:04:06.3]} 33. Rd3
{[%clk 0:00:39.6]} 33... Nf6 {[%clk 0:03:39.2]} 34. Re3 {[%clk 0:00:33.9]} 34...
Qd5 {[%clk 0:03:04.4]} 35. Re7+ {[%clk 0:00:31.8]} 35... Rf7 {[%clk 0:03:05.2]}
36. Qxd5 {[%clk 0:00:18.6]} 36... Nxd5 {[%clk 0:02:59.1]} 37. Rxf7+ {[%clk
0:00:17.8]} 37... Kxf7 {[%clk 0:03:01]} 38. Ne5+ {[%clk 0:00:18.6]} 38... Ke6
{[%clk 0:02:57.2]} 39. Nxg4 {[%clk 0:00:19.7]} 39... b5 {[%clk 0:02:58.3]} 40.
Bf3 {[%clk 0:00:11.8]} 40... Nf4 {[%clk 0:02:53.8]} 41. Rh7 {[%clk 0:00:06]}
41... Rd8 {[%clk 0:02:49.2]} 42. Ke1 {[%clk 0:00:04.8]} 42... b4 {[%clk
0:02:24.2]} 43. Rb7 {[%clk 0:00:04.7]} 43... c4 {[%clk 0:02:24.3]} 44. Ne3
{[%clk 0:00:05.1]} 44... c3 {[%clk 0:02:21.4]} 45. Nc2 {[%clk 0:00:03.8]} 45...
Rd2 {[%clk 0:02:11.2]} 46. Nxb4 {[%clk 0:00:03.7]} 46... Rb2 {[%clk 0:02:12.1]}
47. Na6 {[%clk 0:00:02.4]} 47... Nd3+ {[%clk 0:02:03.5]} 48. Kf1 {[%clk
0:00:02.6]} 48... Rxf2+ {[%clk 0:01:34.3]} 49. Kg1 {[%clk 0:00:03.6]} 49... Rxf3
{[%clk 0:01:36.2]} 50. Rc7 {[%clk 0:00:04.8]} 50... Nf4 {[%clk 0:01:29.6]} 51.
Nb4 {[%clk 0:00:05.2]} 51... Kf5 {[%clk 0:01:26.4]} 52. Rc4 {[%clk 0:00:04.9]}
52... g4 {[%clk 0:01:07.8]} 53. Na2 {[%clk 0:00:04.8]} 53... g3 {[%clk
0:01:07.5]} 54. Nxc3 {[%clk 0:00:03.4]} 54... Rxc3 {[%clk 0:01:06.2]} 0-1